fUSD/lending_fUSD_20250606
["ID","MTS","AMOUNT","RATE_DAILY","PERIOD"]
[364794025,1749243051262,-480.0,0.00027561,5]
[364794026,1749243051271,-480.0,0.00027561,5]
[364794027,1749243051281,-480.0,0.00027561,5]
[364794028,1749243051290,-480.0,0.00027561,5]
[364794029,1749243051300,-480.0,0.00027561,5]
[364794030,1749243051309,-480.0,0.00027561,5]
[364794031,1749243051319,-480.0,0.00027561,5]
[364794032,1749243051330,-480.0,0.00027561,5]
[364794033,1749243051339,-480.0,0.00027561,5]
[364794034,1749243051348,-1496.6,0.00027561,5]
[364794035,1749243051358,-839.32,0.00027561,5]
[364794036,1749243051367,-480.0,0.00027561,5]
[364794037,1749243051377,-634.31,0.00027561,5]
[364794038,1749243051387,-702.33,0.00027561,5]
[364794039,1749243051396,-1803.33,0.00027561,5]
[364794040,1749243051405,-904.31,0.00027561,5]
[364794041,1749243051415,-480.0,0.00027561,5]
[364794042,1749243051424,-480.0,0.00027561,5]
[364794043,1749243051434,-1417.66,0.00027561,5]
[364794044,1749243051443,-996.86,0.00027561,5]
[364794045,1749243051452,-480.0,0.00027561,5]
[364794046,1749243051461,-480.0,0.00027561,5]
[364794047,1749243051472,-480.0,0.00027561,5]
[364794048,1749243051482,-2426.96,0.00027561,5]
[364794049,1749243051492,-480.0,0.00027561,5]
[364794050,1749243051501,-654.69,0.00027561,5]
[364794051,1749243051510,-480.0,0.00027561,5]
[364794052,1749243051520,-480.0,0.00027561,5]
[364794053,1749243051531,-480.0,0.00027561,5]
[364794054,1749243051540,-480.0,0.00027561,5]
[364794055,1749243051552,-619.39,0.00027561,5]
[364794056,1749243051563,-807.12,0.00027561,5]
[364794057,1749243051574,-480.0,0.00027561,5]
[364794058,1749243051584,-480.0,0.00027561,5]
[364794059,1749243051594,-480.0,0.00027561,5]
[364794060,1749243051603,-480.0,0.00027561,5]
[364794061,1749243051613,-480.0,0.00027561,5]
[364794062,1749243051623,-733.74,0.00027561,5]
[364794063,1749243051632,-480.0,0.00027561,5]
[364794064,1749243051642,-608.7,0.00027561,5]
[364794065,1749243051651,-480.0,0.00027561,5]
[364794066,1749243051662,-906.51,0.00027561,5]
[364794067,1749243051672,-480.0,0.00027561,5]
[364794068,1749243051682,-641.93,0.00027561,5]
[364794069,1749243051691,-3404.66,0.00027561,5]
[364794070,1749243051700,-480.0,0.00027561,5]
[364794071,1749243051710,-480.0,0.00027561,5]
[364794072,1749243051720,-480.0,0.00027561,5]
[364794073,1749243051729,-1064.83,0.00027561,5]
[364794074,1749243051740,-480.0,0.00027561,5]
[364794075,1749243051749,-1542.47,0.00027561,5]
[364794076,1749243051759,-1859.79,0.00027561,5]
[364794077,1749243051769,-525.92,0.00027561,5]
[364794078,1749243051778,-888.12,0.00027561,5]
[364794079,1749243051787,-480.0,0.00027561,5]
[364794080,1749243051796,-480.0,0.00027561,5]
[364794081,1749243051807,-480.0,0.00027561,5]
[364794082,1749243051816,-576.74,0.00027561,5]
[364794083,1749243051825,-680.86,0.00027561,5]
[364794084,1749243051835,-2238.84,0.00027561,5]
[364794085,1749243051844,-480.0,0.00027561,5]
[364794086,1749243051853,-480.0,0.00027561,5]
[364794087,1749243051863,-5397.56,0.00027561,5]
[364794088,1749243051873,-1000.0,0.00027561,5]
[364794089,1749243051884,-379.08833747,0.00027561,5]
[364794090,1749243051895,-480.0,0.00027561,5]
[364794091,1749243051904,-195.25379048,0.00027561,2]
[364794092,1749243052506,150.0,0.000356,120]
[364794093,1749243052892,-309.48,0.00027397,5]
[364794094,1749243053305,-170.52,0.00027397,5]
[364794095,1749243053316,-472.13555142,0.00027397,5]
[364794096,1749243053325,-480.0,0.00027397,5]
[364794097,1749243053336,-480.0,0.00027397,5]
[364794098,1749243053346,-284.74620952,0.00027561,2]
[364794099,1749243053355,-118.19823906,0.00027561,5]
[364794100,1749243053501,-976.32410936,0.00027561,5]
[364794101,1749243053517,-323.14765158,0.00027561,5]
[364794102,1749243053527,-480.0,0.00027561,5]
[364794103,1749243053537,-480.0,0.00027561,5]
[364794104,1749243053548,-29142.44,0.00027561,5]
[364794105,1749243053558,-480.0,0.00027561,5]
[364794106,1749243053567,-623.18,0.00027561,5]
[364794107,1749243053577,-698.84,0.00027561,5]
[364794108,1749243053588,-480.0,0.00027561,5]
[364794109,1749243053597,-480.0,0.00027561,2]
[364794110,1749243053607,-480.0,0.00027561,5]
[364794111,1749243053617,-2251.51,0.00027561,5]
[364794112,1749243053626,-641.25,0.00027561,5]
[364794113,1749243053635,-1750.49,0.00027561,5]
[364794114,1749243053645,-480.0,0.00027561,5]
[364794115,1749243053655,-528.19,0.00027561,5]
[364794116,1749243053665,-480.0,0.00027561,5]
[364794117,1749243053674,-480.0,0.00027561,5]
[364794118,1749243053684,-480.0,0.00027561,5]
[364794119,1749243053694,-480.0,0.00027561,5]
[364794120,1749243053705,-480.0,0.00027561,5]
[364794121,1749243053714,-480.0,0.00027561,5]
[364794122,1749243053725,-480.0,0.00027561,5]
[364794123,1749243053735,-5542.64,0.00027561,5]
[364794124,1749243053744,-1923.89,0.00027561,5]
[364794125,1749243053753,-480.0,0.00027561,5]
[364794126,1749243053763,-480.0,0.00027561,5]
[364794127,1749243053772,-480.0,0.00027561,5]
[364794128,1749243053781,-506.74011738,0.00027573,5]
[364794129,1749243053791,-6900.16005353,0.00027586,2]
[364794130,1749243053802,-165.68150263,0.00027587,2]
[364794131,1749243053812,-162.910946,0.00027593,7]
[364794132,1749243053822,-151.0,0.00027593,7]
[364794133,1749243053834,-159.51,0.000276,2]
[364794134,1749243053843,-182.38312279,0.00027626,2]
[364794135,1749243053853,-150.0,0.0002768,2]
[364794136,1749243053862,-151.0,0.00027726,7]
[364794137,1749243053872,-480.0,0.00027726,5]
[364794138,1749243053882,-480.0,0.00027726,5]
[364794139,1749243053891,-480.0,0.00027726,5]
[364794140,1749243053901,-480.0,0.00027726,5]
[364794141,1749243053910,-480.0,0.00027726,5]
[364794142,1749243053920,-480.0,0.00027726,5]
[364794143,1749243053930,-600.0,0.00027726,30]
[364794144,1749243053939,-480.0,0.00027726,5]
[364794145,1749243053949,-480.0,0.00027726,5]
[364794146,1749243053958,-480.0,0.00027726,5]
[364794147,1749243053968,-480.0,0.00027726,5]
[364794148,1749243053983,-480.0,0.00027726,5]
[364794149,1749243053992,-480.0,0.00027726,5]
[364794150,1749243054002,-480.0,0.00027726,5]
[364794151,1749243054012,-480.0,0.00027726,5]
[364794152,1749243054022,-480.0,0.00027726,5]
[364794153,1749243054031,-480.0,0.00027726,5]
[364794154,1749243054040,-480.0,0.00027726,5]
[364794155,1749243054050,-564.4759579,0.00027726,5]
[364794156,1749243054060,-480.0,0.00027726,5]
[364794157,1749243054070,-480.0,0.00027726,5]
[364794158,1749243054079,-480.0,0.00027726,5]
[364794159,1749243054089,-480.0,0.00027726,5]
[364794160,1749243054099,-480.0,0.00027726,5]
[364794161,1749243054109,-480.0,0.00027726,5]
[364794162,1749243054118,-480.0,0.00027726,5]
[364794163,1749243054128,-480.0,0.00027726,5]
[364794164,1749243054137,-589.259794,0.00027726,5]
[364794165,1749243054147,-480.0,0.00027726,5]
[364794166,1749243054156,-480.0,0.00027726,5]
[364794167,1749243054172,-480.0,0.00027726,5]
[364794168,1749243054181,-480.0,0.00027726,5]
[364794169,1749243054191,-150.527845,0.00027726,5]
[364794170,1749243054200,-480.0,0.00027726,5]
[364794171,1749243054210,-480.0,0.00027726,5]
[364794172,1749243054220,-480.0,0.00027726,5]
[364794173,1749243054230,-480.0,0.00027726,5]
[364794174,1749243054240,-480.0,0.00027726,5]
[364794175,1749243054250,-480.0,0.00027726,5]
[364794176,1749243054259,-480.0,0.00027726,5]
[364794177,1749243054269,-480.0,0.00027726,5]
[364794178,1749243054278,-480.0,0.00027726,5]
[364794179,1749243054287,-480.0,0.00027726,5]
[364794180,1749243054297,-480.0,0.00027726,5]
[364794181,1749243054306,-480.0,0.00027726,5]
[364794182,1749243054317,-480.0,0.00027726,5]
[364794183,1749243054327,-480.0,0.00027726,5]
[364794184,1749243054337,-480.0,0.00027726,5]
[364794185,1749243054346,-480.0,0.00027726,5]
[364794186,1749243054357,-480.0,0.00027726,5]
[364794187,1749243054366,-719.0,0.00027726,5]
[364794188,1749243054376,-480.0,0.00027726,5]
[364794189,1749243054385,-480.0,0.00027726,5]
[364794190,1749243054395,-480.0,0.00027726,5]
[364794191,1749243054405,-480.0,0.00027726,5]
[364794192,1749243054414,-480.0,0.00027726,5]
[364794193,1749243054424,-480.0,0.00027726,5]
[364794194,1749243054433,-480.0,0.00027726,5]
[364794195,1749243054442,-480.0,0.00027726,5]
[364794196,1749243054452,-489.12,0.00027726,5]
[364794197,1749243054463,-480.0,0.00027726,5]
[364794198,1749243054472,-480.0,0.00027726,5]
[364794199,1749243054482,-480.0,0.00027726,5]
[364794200,1749243054492,-480.0,0.00027726,5]
[364794201,1749243054502,-480.0,0.00027726,5]
[364794202,1749243054512,-480.0,0.00027726,5]
[364794203,1749243054521,-538.29,0.00027726,5]
[364794204,1749243054531,-475.97098415,0.00027726,5]
[364794205,1749243054540,-480.0,0.00027726,5]
[364794206,1749243054550,-480.0,0.00027726,5]
[364794207,1749243054559,-480.0,0.00027726,5]
[364794208,1749243054569,-480.0,0.00027726,5]
[364794209,1749243054579,-480.0,0.00027726,5]
[364794210,1749243054590,-480.0,0.00027726,5]
[364794211,1749243054599,-480.0,0.00027726,5]
[364794212,1749243054609,-480.0,0.00027726,5]
[364794213,1749243054618,-480.0,0.00027726,5]
[364794214,1749243054627,-671.81,0.00027726,5]
[364794215,1749243054637,-480.0,0.00027726,5]
[364794216,1749243054647,-480.0,0.00027726,5]
[364794217,1749243054656,-480.0,0.00027726,5]
[364794218,1749243054667,-480.0,0.00027726,5]
[364794219,1749243054676,-480.0,0.00027726,5]
[364794220,1749243054687,-480.0,0.00027726,5]
[364794221,1749243054696,-480.0,0.00027726,5]
[364794222,1749243054706,-480.0,0.00027726,5]
[364794223,1749243054716,-480.0,0.00027726,5]
[364794224,1749243054725,-480.0,0.00027726,5]
[364794225,1749243054734,-480.0,0.00027726,5]
[364794226,1749243054744,-480.0,0.00027726,5]
[364794227,1749243054754,-480.0,0.00027726,5]
[364794228,1749243054763,-480.0,0.00027726,5]
[364794229,1749243054772,-854.04,0.00027726,5]
[364794230,1749243054782,-480.0,0.00027726,5]
[364794231,1749243054791,-480.0,0.00027726,5]
[364794232,1749243054800,-480.0,0.00027726,5]
[364794233,1749243054810,-486.9651403,0.00027726,5]
[364794234,1749243054819,-480.0,0.00027726,5]
[364794235,1749243054828,-480.0,0.00027726,5]
[364794236,1749243054838,-480.0,0.00027726,5]
[364794237,1749243054847,-480.0,0.00027726,5]
[364794238,1749243054859,-480.0,0.00027726,5]
[364794239,1749243054875,-480.0,0.00027726,5]
[364794240,1749243054884,-480.0,0.00027726,5]
[364794241,1749243054893,-521.36,0.00027726,5]
[364794242,1749243054902,-480.0,0.00027726,5]
[364794243,1749243054911,-480.0,0.00027726,5]
[364794244,1749243054920,-662.19,0.00027726,5]
[364794245,1749243054929,-480.0,0.00027726,5]
[364794246,1749243054938,-480.0,0.00027726,5]
[364794247,1749243054947,-480.0,0.00027726,5]
[364794248,1749243054957,-480.0,0.00027726,5]
[364794249,1749243054965,-480.0,0.00027726,5]
[364794250,1749243054975,-480.0,0.00027726,5]
[364794251,1749243054984,-480.0,0.00027726,5]
[364794252,1749243054993,-480.0,0.00027726,5]
[364794253,1749243055003,-324.96672663,0.00027726,5]
[364794254,1749243055012,-480.0,0.00027726,5]
[364794255,1749243055022,-480.0,0.00027726,5]
[364794256,1749243055032,-480.0,0.00027726,5]
[364794257,1749243055041,-480.0,0.00027726,5]
[364794258,1749243055051,-480.0,0.00027726,5]
[364794259,1749243055061,-673.66,0.00027726,5]
[364794260,1749243055071,-480.0,0.00027726,5]
[364794261,1749243055082,-480.0,0.00027726,5]
[364794262,1749243055092,-480.0,0.00027726,5]
[364794263,1749243055102,-480.0,0.00027726,5]
[364794264,1749243055111,-480.0,0.00027726,5]
[364794265,1749243055120,-683.89,0.00027726,5]
[364794266,1749243055129,-480.0,0.00027726,5]
[364794267,1749243055138,-480.0,0.00027726,5]
[364794268,1749243055147,-480.0,0.00027726,5]
[364794269,1749243055157,-480.0,0.00027726,5]
[364794270,1749243055168,-480.0,0.00027726,5]
[364794271,1749243055178,-480.0,0.00027726,5]
[364794272,1749243055187,-480.0,0.00027726,5]
[364794273,1749243055196,-480.0,0.00027726,5]
[364794274,1749243055205,-480.0,0.00027726,5]
[364794275,1749243055216,-480.0,0.00027726,5]
[364794276,1749243055225,-480.0,0.00027726,5]
[364794277,1749243055235,-480.0,0.00027726,5]
[364794278,1749243055246,-480.0,0.00027726,5]
[364794279,1749243055257,-480.0,0.00027726,5]
[364794280,1749243055268,-480.0,0.00027726,5]
[364794281,1749243055280,-480.0,0.00027726,5]
[364794282,1749243055292,-652.89,0.00027726,5]
[364794283,1749243055302,-480.0,0.00027726,5]
[364794284,1749243055313,-480.0,0.00027726,5]
[364794285,1749243055323,-480.0,0.00027726,5]
[364794286,1749243055334,-482.77,0.00027726,5]
[364794287,1749243055344,-480.0,0.00027726,5]
[364794288,1749243055353,-480.0,0.00027726,5]
[364794289,1749243055362,-480.0,0.00027726,5]
[364794290,1749243055372,-480.0,0.00027726,5]
[364794291,1749243055381,-480.0,0.00027726,5]
[364794292,1749243055391,-480.0,0.00027726,5]
[364794293,1749243055401,-480.0,0.00027726,5]
[364794294,1749243055411,-480.0,0.00027726,5]
[364794295,1749243055421,-480.0,0.00027726,5]
[364794296,1749243055430,-480.0,0.00027726,5]
[364794297,1749243055439,-480.0,0.00027726,5]
[364794298,1749243055449,-1000.0,0.00027726,2]
[364794299,1749243055459,-480.0,0.00027726,5]
[364794300,1749243055468,-480.0,0.00027726,5]
[364794301,1749243055478,-624.77,0.00027726,5]
[364794302,1749243055487,-480.0,0.00027726,5]
[364794303,1749243055498,-480.0,0.00027726,5]
[364794304,1749243055509,-489.46,0.00027726,5]
[364794305,1749243055519,-480.0,0.00027726,5]
[364794306,1749243055528,-549.16568884,0.00027726,5]
[364794307,1749243055537,-686.67,0.00027726,5]
[364794308,1749243055548,-480.0,0.00027726,5]
[364794309,1749243055557,-1367.43,0.00027726,5]
[364794310,1749243055567,-788.5,0.00027726,5]
[364794311,1749243055576,-480.0,0.00027726,5]
[364794312,1749243055587,-485.29,0.00027726,5]
[364794313,1749243055597,-480.0,0.00027726,5]
[364794314,1749243055607,-5498.69,0.00027726,5]
[364794315,1749243055617,-677.14,0.00027726,5]
[364794316,1749243055627,-480.0,0.00027726,5]
[364794317,1749243055636,-1585.1,0.00027726,5]
[364794318,1749243055645,-480.0,0.00027726,5]
[364794319,1749243055712,-480.0,0.00027726,5]
[364794320,1749243055722,-236.139816,0.00027726,5]
[364794321,1749243055732,-630.63,0.00027726,5]
[364794322,1749243055741,-1222.53,0.00027726,5]
[364794323,1749243055751,-703.04,0.00027726,5]
[364794324,1749243055760,-480.0,0.00027726,5]
[364794325,1749243055769,-883.29,0.00027726,5]
[364794326,1749243055779,-480.0,0.00027726,5]
[364794327,1749243055788,-480.0,0.00027726,5]
[364794328,1749243055797,-598.93,0.00027726,5]
[364794329,1749243055807,-480.0,0.00027726,5]
[364794330,1749243055815,-1506.81,0.00027726,5]
[364794331,1749243055824,-560.68,0.00027726,5]
[364794332,1749243055834,-480.0,0.00027726,5]
[364794333,1749243055843,-480.0,0.00027726,5]
[364794334,1749243055852,-480.0,0.00027726,5]
[364794335,1749243055861,-564.74,0.00027726,5]
[364794336,1749243055870,-1018.57,0.00027726,5]
[364794337,1749243055878,-480.0,0.00027726,5]
[364794338,1749243055887,-480.0,0.00027726,5]
[364794339,1749243055897,-665.17,0.00027726,5]
[364794340,1749243055907,-1366.52,0.00027726,5]
[364794341,1749243055918,-1847.92,0.00027726,5]
[364794342,1749243055928,-253.888849,0.00027726,5]
[364794343,1749243055938,-480.0,0.00027726,5]
[364794344,1749243055947,-490.17,0.00027726,5]
[364794345,1749243055956,-484.31,0.00027726,5]
[364794346,1749243055965,-480.0,0.00027726,5]
[364794347,1749243055975,-480.0,0.00027726,5]
[364794348,1749243055985,-699.72,0.00027726,5]
[364794349,1749243055994,-789.54,0.00027726,5]
[364794350,1749243056004,-480.0,0.00027726,5]
[364794351,1749243056013,-480.0,0.00027726,5]
[364794352,1749243056023,-509.85,0.00027726,5]
[364794353,1749243056032,-480.0,0.00027726,5]
[364794354,1749243056041,-480.0,0.00027726,5]
[364794355,1749243056050,-773.92,0.00027726,5]
[364794356,1749243056059,-637.74,0.00027726,5]
[364794357,1749243056069,-480.0,0.00027726,5]
[364794358,1749243056079,-480.0,0.00027726,5]
[364794359,1749243056089,-480.0,0.00027726,5]
[364794360,1749243056098,-2032.27,0.00027726,5]
[364794361,1749243056108,-480.0,0.00027726,5]
[364794362,1749243056117,-1023.49,0.00027726,5]
[364794363,1749243056128,-480.0,0.00027726,5]
[364794364,1749243056139,-480.0,0.00027726,5]
[364794365,1749243056150,-459.61181471,0.00027726,5]
[364794366,1749243056161,-581.74,0.00027726,5]
[364794367,1749243056174,-480.0,0.00027726,5]
[364794368,1749243056187,-480.0,0.00027726,5]
[364794369,1749243056197,-501.52,0.00027726,5]
[364794370,1749243056207,-5839.55,0.00027726,5]
[364794371,1749243056218,-480.0,0.00027726,5]
[364794372,1749243056228,-480.0,0.00027726,5]
[364794373,1749243056238,-1547.96,0.00027726,5]
[364794374,1749243056249,-480.0,0.00027726,5]
[364794375,1749243056259,-480.0,0.00027726,5]
[364794376,1749243056268,-480.0,0.00027726,5]
[364794377,1749243056279,-480.0,0.00027726,5]
[364794378,1749243056289,-480.0,0.00027726,5]
[364794379,1749243056299,-6675.75,0.00027726,5]
[364794380,1749243056308,-480.0,0.00027726,5]
[364794381,1749243056319,-2007.78,0.00027726,5]
[364794382,1749243056331,-602.38,0.00027726,5]
[364794383,1749243056342,-480.0,0.00027726,5]
[364794384,1749243056351,-480.0,0.00027726,5]
[364794385,1749243056360,-480.0,0.00027726,5]
[364794386,1749243056370,-480.0,0.00027726,5]
[364794387,1749243056382,-480.0,0.00027726,5]
[364794388,1749243056391,-706.42,0.00027726,5]
[364794389,1749243056400,-480.0,0.00027726,5]
[364794390,1749243056411,-480.0,0.00027726,5]
[364794391,1749243056421,-3765.35,0.00027726,5]
[364794392,1749243056434,-480.0,0.00027726,5]
[364794393,1749243056444,-710.7,0.00027726,5]
[364794394,1749243056455,-480.0,0.00027726,5]
[364794395,1749243056465,-841.93,0.00027726,5]
[364794396,1749243056477,-480.0,0.00027726,5]
[364794397,1749243056489,-480.0,0.00027726,5]
[364794398,1749243056499,-674.46,0.00027726,5]
[364794399,1749243056508,-480.0,0.00027726,5]
[364794400,1749243056517,-480.0,0.00027726,5]
[364794401,1749243056527,-480.0,0.00027726,5]
[364794402,1749243056536,-723.18,0.00027726,5]
[364794403,1749243056546,-3270.9,0.00027726,5]
[364794404,1749243056556,-1858.89,0.00027726,5]
[364794405,1749243056565,-480.0,0.00027726,5]
[364794406,1749243056575,-480.0,0.00027726,5]
[364794407,1749243056584,-1578.67,0.00027726,5]
[364794408,1749243056594,-550.44,0.00027726,5]
[364794409,1749243056603,-946.87,0.00027726,5]
[364794410,1749243056613,-480.0,0.00027726,5]
[364794411,1749243056623,-480.0,0.00027726,5]
[364794412,1749243056633,-480.0,0.00027726,5]
[364794413,1749243056643,-480.0,0.00027726,5]
[364794414,1749243056652,-480.0,0.00027726,5]
[364794415,1749243056661,-480.0,0.00027726,5]
[364794416,1749243056671,-480.0,0.00027726,5]
[364794417,1749243056680,-480.0,0.00027726,5]
[364794418,1749243056690,-1496.6,0.00027726,5]
[364794419,1749243056699,-839.32,0.00027726,5]
[364794420,1749243056710,-480.0,0.00027726,5]
[364794421,1749243056719,-634.31,0.00027726,5]
[364794422,1749243056729,-702.33,0.00027726,5]
[364794423,1749243056738,-1803.33,0.00027726,5]
[364794424,1749243056747,-904.31,0.00027726,5]
[364794425,1749243056757,-480.0,0.00027726,5]
[364794426,1749243056766,-480.0,0.00027726,5]
[364794427,1749243056775,-1417.66,0.00027726,5]
[364794428,1749243056784,-996.86,0.00027726,5]
[364794429,1749243056793,-480.0,0.00027726,5]
[364794430,1749243056802,-480.0,0.00027726,5]
[364794431,1749243056811,-2426.96,0.00027726,5]
[364794432,1749243056821,-480.0,0.00027726,5]
[364794433,1749243056831,-654.69,0.00027726,5]
[364794434,1749243056841,-480.0,0.00027726,5]
[364794435,1749243056850,-480.0,0.00027726,5]
[364794436,1749243056860,-480.0,0.00027726,5]
[364794437,1749243056869,-480.0,0.00027726,5]
[364794438,1749243056878,-619.39,0.00027726,5]
[364794439,1749243056887,-807.12,0.00027726,5]
[364794440,1749243056896,-480.0,0.00027726,5]
[364794441,1749243056906,-480.0,0.00027726,5]
[364794442,1749243056915,-480.0,0.00027726,5]
[364794443,1749243056925,-480.0,0.00027726,5]
[364794444,1749243056934,-480.0,0.00027726,5]
[364794445,1749243056943,-733.74,0.00027726,5]
[364794446,1749243056952,-480.0,0.00027726,5]
[364794447,1749243056962,-608.7,0.00027726,5]
[364794448,1749243056971,-906.51,0.00027726,5]
[364794449,1749243056981,-480.0,0.00027726,5]
[364794450,1749243056990,-641.93,0.00027726,5]
[364794451,1749243056999,-3404.66,0.00027726,5]
[364794452,1749243057008,-480.0,0.00027726,5]
[364794453,1749243057016,-480.0,0.00027726,5]
[364794454,1749243057026,-480.0,0.00027726,5]
[364794455,1749243057035,-1064.83,0.00027726,5]
[364794456,1749243057044,-347.19201022,0.00027726,5]
[364794457,1749243057053,-1542.47,0.00027726,5]
[364794458,1749243057062,-1859.79,0.00027726,5]
[364794459,1749243057072,-525.92,0.00027726,5]
[364794460,1749243057081,-888.12,0.00027726,5]
[364794461,1749243057091,-480.0,0.00027726,5]
[364794462,1749243057100,-480.0,0.00027726,5]
[364794463,1749243057109,-480.0,0.00027726,5]
[364794464,1749243057119,-576.74,0.00027726,5]
[364794465,1749243057128,-680.86,0.00027726,5]
[364794466,1749243057137,-2238.84,0.00027726,5]
[364794467,1749243057147,-480.0,0.00027726,5]
[364794468,1749243057156,-480.0,0.00027726,5]
[364794469,1749243057166,-5397.56,0.00027726,5]
[364794470,1749243057179,-1000.0,0.00027726,5]
[364794471,1749243057188,-480.0,0.00027726,2]
[364794472,1749243057198,-480.0,0.00027726,5]
[364794473,1749243057208,-1417.67,0.00027726,5]
[364794474,1749243057218,-480.0,0.00027726,5]
[364794475,1749243057227,-480.0,0.00027726,5]
[364794476,1749243057237,-29142.44,0.00027726,5]
[364794477,1749243057247,-698.84,0.00027726,5]
[364794478,1749243057256,-480.0,0.00027726,5]
[364794479,1749243057265,-480.0,0.00027726,2]
[364794480,1749243057275,-480.0,0.00027726,5]
[364794481,1749243057284,-2251.51,0.00027726,5]
[364794482,1749243057293,-641.25,0.00027726,5]
[364794483,1749243057303,-1750.49,0.00027726,5]
[364794484,1749243057312,-480.0,0.00027726,5]
[364794485,1749243057322,-528.19,0.00027726,5]
[364794486,1749243057331,-480.0,0.00027726,5]
[364794487,1749243057342,-480.0,0.00027726,5]
[364794488,1749243057351,-480.0,0.00027726,5]
[364794489,1749243057361,-480.0,0.00027726,5]
[364794490,1749243057370,-480.0,0.00027726,5]
[364794491,1749243057380,-5542.64,0.00027726,5]
[364794492,1749243057390,-1923.89,0.00027726,5]
[364794493,1749243057399,-480.0,0.00027726,5]
[364794494,1749243057409,-480.0,0.00027726,5]
[364794495,1749243057419,-480.0,0.00027726,5]
[364794496,1749243057428,-222.14942869,0.00027729,2]
[364794497,1749243057437,-161.6696733,0.00027789,2]
[364794498,1749243057447,-7178.30388167,0.00027804,2]
[364794499,1749243057456,-151.0,0.0002789,7]
[364794500,1749243057465,-480.0,0.0002789,5]
[364794501,1749243057474,-480.0,0.0002789,5]
[364794502,1749243057484,-480.0,0.0002789,5]
[364794503,1749243057493,-600.0,0.0002789,30]
[364794504,1749243057502,-480.0,0.0002789,5]
[364794505,1749243057511,-480.0,0.0002789,5]
[364794506,1749243057521,-480.0,0.0002789,5]
[364794507,1749243057530,-480.0,0.0002789,5]
[364794508,1749243057539,-480.0,0.0002789,5]
[364794509,1749243057548,-282.73995091,0.0002789,5]
[364794510,1749243057558,-567.51966202,0.0002789,5]
[364794511,1749243057567,-394.77393986,0.0002789,5]
[364794512,1749243057578,-518.61420619,0.0002789,5]
[364794513,1749243057589,-480.0,0.0002789,5]
[364794514,1749243057598,-480.0,0.0002789,5]
[364794515,1749243057608,-480.0,0.0002789,5]
[364794516,1749243057617,-480.0,0.0002789,5]
[364794517,1749243057627,-480.0,0.0002789,5]
[364794518,1749243057636,-190.24736055,0.0002789,5]
[364794519,1749243057646,-480.0,0.0002789,5]
[364794520,1749243057656,-589.259794,0.0002789,5]
[364794521,1749243057665,-480.0,0.0002789,5]
[364794522,1749243057674,-480.0,0.0002789,5]
[364794523,1749243057684,-480.0,0.0002789,5]
[364794524,1749243057693,-150.527845,0.0002789,5]